{"text_format":"3","workbook":"xlsx","n_sheets":2,"sheets":["Start","Servicerechnung"],"not_rendered":{"images":1,"defined_names":1},"read":"whole","date_system":"1900"}

{"sheet":"Start","index":0,"n_rows":8,"n_cols":2,"rows_kept":8}
[null,"ÜBER DIESE VORLAGE"]
[null,"Verwenden Sie diese Vorlage zum Erstellen einer einfachen Dienstleistungsrechnung."]
[null,"Geben Sie Rechnungsnummer, Datum, Firmenname, Adresse, Slogan und Details für Rechnungsadresse ein."]
[null,"Geben Sie Informationen in Tabellen ein."]
[null,"Die Summe wird am Ende automatisch berechnet."]
[null,"Hinweis:: "]
[null,"Zusätzliche Anweisungen wurden in Spalte A auf dem Arbeitsblatt DIENSTLEISTUNGSRECHNUNG bereitgestellt. Diese Texte wurden absichtlich ausgeblendet. Um die Texte zu entfernen, wählen Sie Spalte A und dann ENTF aus. Um die Texte einzublenden, wählen Sie Spalte A aus, und ändern Sie die Schriftfarbe."]
[null,"Um mehr über Tabellen zu erfahren, drücken Sie die UMSCHALTTASTE und dann F10 innerhalb einer Tabelle, wählen Sie die Option TABELLE und dann ALTERNATIVTEXT aus."]

{"sheet":"Servicerechnung","index":1,"n_rows":44,"n_cols":5,"rows_kept":44,"merged":[[0,1,0,2],[0,3,0,4],[2,1,2,3],[3,1,3,3],[4,1,4,2],[5,1,5,2],[6,1,6,2],[7,1,7,2],[41,1,41,2],[41,3,41,4],[43,1,43,4]]}
[null,"Der Logoplatzhalter ist in dieser Zelle.",null,"RECHNUNG"]
[]
[null,"Ihr Firmenname"]
[null,"Ihr Firmenslogan"]
[null,"Straße",null,"RECHNUNG NR.","Nr."]
[null,"Straße, PLZ, Ort",null,"DATUM ",{"$f":"TODAY()","v":"2022-04-26"}]
[null,"Telefon- und Faxnummer",null,"KUNDEN-ID ","ID"]
[null,"E-Mail-Adresse"]
[null,"AN","Name"]
[null,null,"Firmenname"]
[null,null,"Straße"]
[null,null,"Straße, PLZ, Ort"]
[null,null,"Telefon"]
[null,"VERKÄUFER","AUFTRAG","ZAHLUNGSBEDINGUNGEN","FÄLLIGKEITSDATUM"]
[{"$nulls":3},"Fällig bei Erhalt"]
[]
[null,"MENGE","BESCHREIBUNG","EINZELPREIS","ZEILENSUMME"]
[{"$nulls":4},{"$f":"IF(SUM(B18)>0,SUM(B18*Servicerechnung!$D18),\"\")","v":""}]
[{"$nulls":4},{"$f":"IF(SUM(B19)>0,SUM(B19*Servicerechnung!$D19),\"\")","v":""}]
[{"$nulls":4},{"$f":"IF(SUM(B20)>0,SUM(B20*Servicerechnung!$D20),\"\")","v":""}]
[{"$nulls":4},{"$f":"IF(SUM(B21)>0,SUM(B21*Servicerechnung!$D21),\"\")","v":""}]
[{"$nulls":4},{"$f":"IF(SUM(B22)>0,SUM(B22*Servicerechnung!$D22),\"\")","v":""}]
[{"$nulls":4},{"$f":"IF(SUM(B23)>0,SUM(B23*Servicerechnung!$D23),\"\")","v":""}]
[{"$nulls":4},{"$f":"IF(SUM(B24)>0,SUM(B24*Servicerechnung!$D24),\"\")","v":""}]
[{"$nulls":4},{"$f":"IF(SUM(B25)>0,SUM(B25*Servicerechnung!$D25),\"\")","v":""}]
[{"$nulls":4},{"$f":"IF(SUM(B26)>0,SUM(B26*Servicerechnung!$D26),\"\")","v":""}]
[{"$nulls":4},{"$f":"IF(SUM(B27)>0,SUM(B27*Servicerechnung!$D27),\"\")","v":""}]
[{"$nulls":4},{"$f":"IF(SUM(B28)>0,SUM(B28*Servicerechnung!$D28),\"\")","v":""}]
[{"$nulls":4},{"$f":"IF(SUM(B29)>0,SUM(B29*Servicerechnung!$D29),\"\")","v":""}]
[{"$nulls":4},{"$f":"IF(SUM(B30)>0,SUM(B30*Servicerechnung!$D30),\"\")","v":""}]
[{"$nulls":4},{"$f":"IF(SUM(B31)>0,SUM(B31*Servicerechnung!$D31),\"\")","v":""}]
[{"$nulls":4},{"$f":"IF(SUM(B32)>0,SUM(B32*Servicerechnung!$D32),\"\")","v":""}]
[{"$nulls":4},{"$f":"IF(SUM(B33)>0,SUM(B33*Servicerechnung!$D33),\"\")","v":""}]
[{"$nulls":4},{"$f":"IF(SUM(B34)>0,SUM(B34*Servicerechnung!$D34),\"\")","v":""}]
[{"$nulls":4},{"$f":"IF(SUM(B35)>0,SUM(B35*Servicerechnung!$D35),\"\")","v":""}]
[{"$nulls":4},{"$f":"IF(SUM(B36)>0,SUM(B36*Servicerechnung!$D36),\"\")","v":""}]
[{"$nulls":4},{"$f":"IF(SUM(B37)>0,SUM(B37*Servicerechnung!$D37),\"\")","v":""}]
[{"$nulls":3},"ZWISCHENSUMME",{"$f":"IF(SUM(E18:E37)>0,SUM(E18:E37),\"\")","v":""}]
[{"$nulls":3},"MEHRWERTSTEUER"]
[{"$nulls":3},"ERGEBNIS",{"$f":"IF(SUM(E38)>0,SUM((E38*E39)+E38),\"\")","v":""}]
[]
[null,"Alle Schecks auszahlbar an",null,{"$f":"B3","v":"Ihr Firmenname"}]
[]
[null,"VIELEN DANK FÜR IHRE BESTELLUNG!"]